bitfinex-derivatives/quotes_SOLF0:USTF0_20250415
["timestamp","ask_amount","ask_price","bid_price","bid_amount"]
[1744697143698,35.51150436,131.28,131.2,28.1]
[1744697144598,0.05448692,131.25,131.23,0.05079971]
[1744697145100,7.6209,131.24,131.23,0.05079971]
[1744697145693,7.6218,131.23,131.19,28.1]
[1744697145893,7.41150436,131.24,131.19,28.1]
[1744697146098,7.41150436,131.24,131.19,35.7236]
[1744697146698,0.0500948,131.23,131.2,0.04961483]
[1744697146998,7.6224,131.22,131.2,0.04961483]
[1744697148404,0.0500948,131.23,131.2,0.04961483]
[1744697148907,0.0500948,131.23,131.2,2.11251483]
[1744697149208,0.0500948,131.23,131.21,7.6227]
[1744697149507,0.0500948,131.23,131.2,2.11251483]
[1744697150307,7.6719948,131.23,131.2,9.73541483]
[1744697152308,7.6719948,131.23,131.2,7.67251483]
[1744697156713,0.0500948,131.23,131.21,7.6226]
[1744697157713,0.0500948,131.23,131.22,7.6221]
[1744697158919,0.0500948,131.23,131.22,35.7221]
[1744697159519,7.6201,131.26,131.24,7.6209]
[1744697159819,28.1,131.28,131.22,28.1]
[1744697160018,7.6204,131.25,131.22,35.7218]
[1744697160218,35.51150436,131.28,131.22,28.1]
[1744697160415,13.65470436,131.3,131.22,28.1]
[1744697160615,0.04998015,131.27,131.25,0.05451553]
[1744697160819,35.49150436,131.32,131.25,28.08]
[1744697161019,35.49150436,131.32,131.25,28.13711124]
[1744697161218,0.04810693,131.3,131.25,30.20611124]
[1744697161817,7.66570693,131.3,131.27,7.6191]
[1744697162220,0.04810693,131.3,131.28,7.6185]
[1744697162719,0.04810693,131.3,131.28,28.13067045]
[1744697164421,0.04810693,131.3,131.29,7.618]
[1744697170022,7.6146,131.35,131.29,7.41150436]
[1744697170224,7.41150436,131.37,131.3,2.0123]
[1744697170427,7.41150436,131.35,131.31,27.98]
[1744697170625,7.41150436,131.35,131.29,7.6176]
[1744697170830,7.41150436,131.35,131.28,27.98]
[1744697171023,7.6168,131.32,131.28,35.5981]
[1744697171319,7.6168,131.32,131.3,0.05080858]
[1744697172734,7.6169,131.31,131.3,0.05080858]
[1744697174424,7.46667916,131.33,131.3,0.05080858]
[1744697174631,0.0551748,131.33,131.3,0.05080858]
[1744697175129,7.6169,131.31,131.3,0.05080858]
[1744697175324,0.0551748,131.33,131.3,0.05080858]
[1744697176531,0.0551748,131.33,131.32,7.6163]
[1744697176732,7.6136,131.37,131.31,33.9715]
[1744697177229,7.6136,131.37,131.34,7.6151]
[1744697177427,37.52410436,131.41,131.34,27.98]
[1744697177626,2.1326,131.41,131.34,27.98]
[1744697177832,0.05295687,131.39,131.37,7.6133]
[1744697178232,0.05295687,131.39,131.37,7.6134]
[1744697178434,0.05295687,131.39,131.36,0.05087228]
[1744697178635,0.05295687,131.39,131.37,27.96]
[1744697180134,7.66555687,131.39,131.37,27.96]
[1744697180636,0.05295687,131.39,131.37,35.5732]
[1744697180933,0.05295687,131.39,131.37,27.96]
[1744697181240,0.05295687,131.39,131.37,35.5734]
[1744697181734,0.05295687,131.39,131.37,27.96]
[1744697181936,0.05295687,131.39,131.38,7.6128]
[1744697182334,2.1326,131.45,131.37,35.37150436]
[1744697182533,2.1326,131.45,131.4,7.6114]
[1744697182833,7.6103,131.43,131.4,35.5714]
[1744697183028,7.41150436,131.46,131.4,35.5714]
[1744697183234,7.41150436,131.44,131.4,27.96]
[1744697183432,7.6099,131.43,131.42,0.04938801]
[1744697183736,35.42578854,131.44,131.35,27.96]
[1744697183936,7.41150436,131.42,131.35,27.96]
[1744697184137,7.41150436,131.42,131.36,7.6136]
[1744697184534,7.6121,131.4,131.35,27.96]
[1744697184734,0.05393022,131.4,131.38,0.05423607]
[1744697185236,0.05393022,131.4,131.38,7.66673607]
[1744697185537,0.05393022,131.4,131.38,28.01423607]
[1744697185743,0.05393022,131.4,131.39,7.6122]
[1744697186633,7.41150436,131.46,131.41,7.611]
[1744697187635,7.6099,131.43,131.42,0.04922772]
[1744697188240,0.04868656,131.45,131.42,0.04922772]
[1744697189842,0.04868656,131.45,131.42,7.46073208]
[1744697190246,0.04868656,131.45,131.44,7.6094]
[1744697190439,0.04868656,131.45,131.44,35.5694]
[1744697191642,0.04868656,131.45,131.44,27.96]
[1744697197244,0.04868656,131.45,131.42,0.04922772]
[1744697197744,7.65778656,131.45,131.42,7.65972772]
[1744697198545,7.65778656,131.45,131.42,0.04922772]
[1744697198749,7.6099,131.43,131.42,0.04922772]
[1744697204649,7.6122,131.39,131.34,9.38580436]
[1744697204846,7.6122,131.39,131.35,28.02]
[1744697205341,7.6122,131.39,131.35,35.634]
[1744697205646,28.02,131.43,131.37,7.6132]
[1744697205846,0.05662933,131.38,131.37,7.6132]
[1744697206050,0.04985958,131.39,131.37,7.6132]
[1744697206348,0.04985958,131.39,131.37,7.67069465]
[1744697207649,7.66215958,131.39,131.37,0.05749465]
[1744697207851,0.04985958,131.39,131.37,0.05749465]
[1744697208445,0.04985958,131.39,131.38,28.02]
[1744697208840,0.04985958,131.39,131.38,35.6328]
[1744697210247,0.04985958,131.39,131.38,28.02]
[1744697210943,0.04985958,131.39,131.37,0.05749465]
[1744697211449,7.6128,131.38,131.37,0.05749465]
[1744697212044,7.6146,131.36,131.33,7.6154]
[1744697212750,7.41150436,131.37,131.32,28.02]
[1744697213050,0.05794836,131.36,131.33,0.05575038]
[1744697213244,7.6151,131.34,131.33,0.05575038]
[1744697214453,7.6174,131.31,131.29,28.02]
[1744697214641,7.6174,131.31,131.27,2.1238]
[1744697215046,7.6174,131.31,131.27,9.7426]
[1744697215452,0.04959548,131.3,131.28,0.05753874]
[1744697215651,30.0549,131.37,131.29,28.02]
[1744697215845,30.0549,131.37,131.3,7.41150436]
[1744697216251,7.41150436,131.36,131.29,30.0535]
[1744697216652,30.0549,131.37,131.29,30.0535]
[1744697216848,0.05420817,131.34,131.31,0.05330624]
[1744697217953,0.05420817,131.34,131.32,7.616]
[1744697218556,0.05420817,131.34,131.31,0.05330624]
[1744697219150,0.05420817,131.34,131.33,7.6157]
[1744697220156,0.05420817,131.34,131.32,7.6161]
[1744697221155,7.66980817,131.34,131.31,7.67000624]
[1744697221351,0.05420817,131.34,131.31,0.05330624]
[1744697221755,7.6163,131.32,131.31,0.05330624]
[1744697224256,7.6161,131.33,131.31,0.05330624]
[1744697224759,7.46571253,131.34,131.31,0.05330624]
[1744697225057,7.6157,131.33,131.31,0.05330624]
[1744697226161,7.6163,131.32,131.31,0.05330624]
[1744697226862,7.41150436,131.32,131.24,2.1561]
[1744697227159,7.41150436,131.32,131.23,27.96]
[1744697227651,9.46630436,131.32,131.23,27.96]
[1744697227856,7.6189,131.28,131.26,0.05451905]
[1744697228059,0.0583209,131.29,131.26,0.05451905]
[1744697228557,7.6192,131.27,131.26,0.05451905]
[1744697228760,35.37150436,131.28,131.23,27.96]
[1744697229356,7.6205,131.25,131.23,27.96]
[1744697229555,7.41150436,131.26,131.09,367.92648598]
[1744697229749,7.6228,131.21,131.17,7.6246]
[1744697229956,0.05253925,131.2,131.17,0.05509194]
[1744697230258,0.04875635,131.2,131.17,30.04164335]
[1744697231556,0.04875635,131.2,131.19,7.6234]
[1744697231960,0.04875635,131.2,131.17,30.04164335]
[1744697232161,0.04875635,131.2,131.17,28.00904335]
[1744697232361,0.04875635,131.2,131.17,0.04904335]
[1744697233160,7.67215635,131.2,131.17,7.67394335]
[1744697233459,0.04875635,131.2,131.17,7.67394335]
[1744697233662,0.04875635,131.2,131.18,7.6244]
[1744697234257,0.04875635,131.2,131.19,7.6239]
[1744697235056,27.98,131.29,131.22,7.41150436]
[1744697235256,29.9787,131.32,131.24,7.41150436]
[1744697235561,7.41150436,131.34,131.26,7.41150436]
[1744697235757,9.41020436,131.34,131.26,35.39150436]
[1744697235963,7.6174,131.31,131.26,35.39150436]
[1744697236162,0.05796703,131.31,131.29,0.05588169]
[1744697236565,7.6175,131.3,131.29,0.05588169]
[1744697240059,7.67506703,131.31,131.29,0.05588169]
[1744697240267,0.05796703,131.31,131.29,0.05588169]
[1744697241863,1.971,131.37,131.3,27.98]
[1744697242165,29.9988,131.38,131.3,27.98]
[1744697242366,27.98,131.38,131.33,7.6157]
[1744697242769,7.6153,131.34,131.31,7.6166]
[1744697243270,7.6158,131.33,131.31,0.05301565]
[1744697244067,7.6163,131.32,131.31,0.05301565]
[1744697244467,0.05173217,131.34,131.31,0.05301565]
[1744697244668,7.6161,131.33,131.31,0.05301565]
[1744697244972,0.05173217,131.34,131.31,0.05301565]
[1744697246273,7.66713217,131.34,131.31,0.05301565]
[1744697246671,7.6163,131.32,131.31,0.05301565]
[1744697247175,0.05173217,131.34,131.31,0.05301565]
[1744697247473,7.6159,131.33,131.31,0.05301565]
[1744697247775,0.05173217,131.34,131.31,0.05301565]
[1744697248778,7.6161,131.33,131.31,0.05301565]
[1744697250278,0.05173217,131.34,131.31,0.05301565]
[1744697251380,0.05173217,131.34,131.31,2.09991565]
[1744697251681,0.05173217,131.34,131.33,7.6157]
[1744697252179,7.6135,131.37,131.34,7.6149]
[1744697253284,7.66877726,131.37,131.34,7.67288639]
[1744697253485,0.05527726,131.37,131.35,7.6143]
[1744697254385,7.66877726,131.37,131.34,7.67298639]
[1744697254788,0.05527726,131.37,131.34,0.05798639]
[1744697255387,0.05527726,131.37,131.35,7.6142]
[1744697255582,0.05527726,131.37,131.34,0.05798639]
[1744697255786,0.05527726,131.37,131.34,2.22578639]
[1744697255983,0.05527726,131.37,131.35,7.6146]
[1744697256282,0.05527726,131.37,131.34,2.22578639]
[1744697256586,7.66887726,131.37,131.34,9.84058639]
[1744697257686,7.66887726,131.37,131.34,2.22578639]
[1744697257687,7.6141,131.36,131.34,2.22578639]
[1744697257888,0.05527726,131.37,131.34,2.22578639]
[1744697258587,0.05527726,131.37,131.34,9.84038639]
[1744697258987,7.66877726,131.37,131.34,9.84038639]
[1744697260289,7.6141,131.36,131.34,2.22578639]
[1744697261092,7.66897726,131.37,131.34,9.84088639]
[1744697263795,7.614,131.36,131.34,2.22578639]
[1744697263990,7.614,131.36,131.34,0.05798639]
[1744697265293,7.66897726,131.37,131.34,7.67308639]
[1744697265693,7.66897726,131.37,131.34,0.05798639]
[1744697265893,0.05527726,131.37,131.35,7.6145]
[1744697266093,0.05527726,131.37,131.34,0.05798639]
[1744697266682,7.66877726,131.37,131.34,7.67278639]
[1744697267388,0.05527726,131.37,131.34,7.43975042]
[1744697267593,0.05527726,131.37,131.34,9.49815042]
[1744697267794,0.05527726,131.37,131.34,11.53695042]
[1744697268093,0.05527726,131.37,131.36,7.614]
[1744697271099,0.05527726,131.37,131.35,35.6543]
[1744697271995,0.05527726,131.37,131.36,7.614]
[1744697272399,28.04,131.43,131.36,7.38176403]
[1744697272697,28.04,131.43,131.38,7.6124]
[1744697273097,7.6113,131.41,131.38,7.6124]
[1744697273399,7.66900888,131.41,131.38,7.66217817]
[1744697274800,7.43947291,131.41,131.38,0.04977817]
[1744697275200,7.6122,131.39,131.38,0.04977817]
[1744697280206,35.42176403,131.39,131.32,28.04]
[1744697280602,7.38176403,131.37,131.32,28.04]
[1744697281302,0.05233363,131.36,131.33,0.05066485]
[1744697281503,7.6154,131.34,131.33,0.05066485]
[1744697282299,7.38176403,131.35,131.29,28.04]
[1744697282504,7.38176403,131.33,131.25,28.04]
[1744697282707,35.42176403,131.33,131.25,28.04]
[1744697282899,35.42176403,131.33,131.25,35.6602]
[1744697283097,7.6185,131.29,131.25,35.6602]
[1744697283298,7.6185,131.29,131.25,28.04]
[1744697283500,0.05342997,131.28,131.26,0.05819151]
[1744697283796,0.05342997,131.28,131.26,7.67769151]
[1744697285004,7.6169,131.31,131.26,7.43995554]
[1744697285699,7.6166,131.32,131.28,7.6182]
[1744697285904,27.96,131.36,131.28,35.34176403]
[1744697286100,27.96,131.36,131.3,7.38176403]
[1744697286295,7.6148,131.35,131.3,7.38176403]
[1744697286601,577.9585,131.39,131.31,27.96]
[1744697286805,27.96,131.39,131.32,7.38176403]
[1744697286999,7.6137,131.37,131.34,7.615]
[1744697287200,7.67094859,131.37,131.34,7.66882927]
[1744697287501,0.05724859,131.37,131.34,0.05382927]
[1744697287899,7.6143,131.36,131.34,0.05382927]
[1744697288308,0.05724859,131.37,131.34,0.05382927]
[1744697288504,7.6146,131.35,131.34,0.05382927]
[1744697290012,7.6163,131.32,131.28,35.34176403]
[1744697290807,379.86,131.44,131.3,7.38176403]
[1744697290808,357.0,131.44,131.3,7.38176403]
[1744697291006,0.05516606,131.38,131.36,0.05485975]
[1744697291204,0.05516606,131.38,131.32,7.38176403]
[1744697291205,7.38176403,131.41,131.32,42.95756403]
[1744697291406,0.05696258,131.38,131.36,0.05427463]
[1744697292108,7.6134,131.37,131.36,0.05427463]
[1744697296113,7.6168,131.32,131.29,35.5778]
[1744697296611,35.34176403,131.37,131.29,27.96]
[1744697297213,7.6164,131.32,131.29,35.5779]
[1744697297411,0.05772808,131.34,131.29,27.96]
[1744697297711,0.05772808,131.34,131.29,28.01620363]
[1744697298206,7.616,131.33,131.3,7.38176403]
[1744697298603,7.6167,131.32,131.3,7.38176403]
[1744697299004,0.05772808,131.34,131.29,28.01620363]
[1744697299515,7.43949211,131.34,131.29,28.01620363]
[1744697299710,35.39949211,131.34,131.29,28.01620363]
[1744697299911,28.01772808,131.34,131.29,28.01620363]
[1744697300608,7.617,131.31,131.29,28.01620363]
[1744697301004,0.04958097,131.31,131.29,28.01620363]
[1744697301204,7.6175,131.3,131.29,0.05620363]
[1744697304010,28.00958097,131.31,131.23,27.96]
[1744697304011,39.837239,131.31,131.23,27.96]
[1744697304210,11.82765803,131.29,131.21,1.9609]
[1744697304506,27.96,131.28,131.21,1.9609]
[1744697304711,27.96,131.28,131.2,27.96]
[1744697305214,7.6225,131.22,131.2,27.96]
[1744697305410,11.82765803,131.27,131.16,11.82765803]
[1744697305615,4.1687,131.3,131.17,27.96]
[1744697305616,7.6237,131.2,131.17,27.96]
[1744697306014,7.6237,131.2,131.17,28.01159458]
[1744697306015,0.05791125,131.2,131.17,28.01159458]
[1744697306214,7.6244,131.18,131.17,0.05159458]
[1744697307410,27.98,131.18,131.11,34.1166]
[1744697307619,11.82765803,131.17,131.11,27.98]
[1744697307916,7.6278,131.13,131.11,27.98]
[1744697308116,7.6278,131.13,131.09,8.92648598]
[1744697308317,11.82765803,131.17,131.09,8.92648598]
[1744697308518,0.0529535,131.14,131.12,0.05510883]
[1744697311521,0.0529535,131.14,131.12,7.68260883]
[1744697311719,0.0529535,131.14,131.12,0.05510883]
[1744697312719,0.0529535,131.14,131.12,7.68260883]
[1744697313821,0.0529535,131.14,131.12,0.05510883]
[1744697314223,0.0529535,131.14,131.12,7.68300883]
[1744697314624,0.0529535,131.14,131.12,0.05510883]
[1744697314826,7.6798535,131.14,131.12,0.05510883]
[1744697316721,0.0529535,131.14,131.12,0.05510883]
[1744697317623,27.98,131.2,131.12,11.88276686]
[1744697317922,27.98,131.2,131.13,6.1646]
[1744697318123,7.6242,131.19,131.15,7.6258]
[1744697318426,7.6242,131.19,131.14,28.2]
[1744697318722,0.04817204,131.18,131.15,7.67930836]
[1744697319123,0.04817204,131.18,131.15,0.05320836]
[1744697319924,7.67287204,131.18,131.15,0.05320836]
[1744697320120,0.04817204,131.18,131.15,0.05320836]
[1744697320622,0.04817204,131.18,131.16,7.6255]
[1744697320825,0.04817204,131.18,131.15,0.05320836]
[1744697321425,0.04817204,131.18,131.15,7.67920836]
[1744697321627,0.04817204,131.18,131.15,0.05320836]
[1744697322322,0.04817204,131.18,131.15,7.67910836]
[1744697329031,0.04817204,131.18,131.16,7.6255]
[1744697330535,7.67267204,131.18,131.15,7.67910836]
[1744697332838,0.04817204,131.18,131.16,7.6254]
[1744697333038,2.0896,131.24,131.16,7.6254]
[1744697333039,9.49291579,131.24,131.17,7.40331579]
[1744697333442,28.2,131.25,131.17,7.40331579]
[1744697333940,7.6218,131.23,131.2,7.6229]
[1744697334134,0.04799532,131.22,131.2,7.6229]
[1744697334638,0.04799532,131.22,131.21,7.6227]
[1744697335037,0.04799532,131.22,131.19,35.65840738]
[1744697335240,0.04799532,131.22,131.19,28.25509159]
[1744697335741,7.6233,131.2,131.19,28.25509159]
[1744697335940,7.6233,131.2,131.19,0.05509159]
[1744697336237,7.6254,131.17,131.13,34.3646]
[1744697336639,7.6254,131.17,131.13,41.9916]
[1744697336940,7.6254,131.17,131.13,34.3646]
[1744697337238,0.05656004,131.16,131.14,7.68389083]
[1744697338844,0.05656004,131.16,131.15,7.6262]
[1744697339339,35.60331579,131.22,131.14,0.05719083]
[1744697339540,28.2,131.22,131.15,7.40331579]
[1744697339838,28.2,131.22,131.16,28.2]
[1744697340140,7.6244,131.19,131.16,35.8252]
[1744697340333,7.68155701,131.19,131.16,35.8252]
[1744697340537,0.05715701,131.19,131.16,28.24840308]
[1744697341338,0.05715701,131.19,131.16,0.04840308]
[1744697343136,7.625,131.17,131.16,0.04840308]
[1744697344745,7.6247,131.18,131.16,0.04840308]
[1744697344941,0.05715701,131.19,131.16,0.04840308]
[1744697346241,2.1665,131.27,131.17,7.40331579]
[1744697346439,584.30331579,131.28,131.2,7.40331579]
[1744697346640,7.6212,131.24,131.21,7.6222]
[1744697347442,7.67296333,131.24,131.21,7.67782132]
[1744697347645,7.45507912,131.24,131.21,0.05562132]
[1744697348048,7.6221,131.22,131.21,0.05562132]
[1744697362257,39.99966851,131.22,131.15,28.16]
[1744697362461,11.83966851,131.2,131.12,28.16]
[1744697362756,7.626,131.16,131.12,28.16]
[1744697362957,7.626,131.16,131.12,35.7874]
[1744697363456,7.68312927,131.15,131.13,0.05843639]
[1744697364658,7.6268,131.14,131.13,0.05843639]
[1744697365061,0.05692927,131.15,131.09,28.16]
[1744697365461,7.6286,131.11,131.09,28.16]
[1744697365662,39.99966851,131.16,131.09,28.16]
[1744697365864,11.83966851,131.14,131.05,34.2657]
[1744697366164,0.05630658,131.11,131.08,0.05035858]
[1744697366859,28.16,131.1,131.05,28.16]
[1744697367059,39.99966851,131.1,131.01,30.189]
[1744697367964,7.6324,131.05,131.04,0.05449913]
[1744697369565,7.6342,131.02,130.99,30.2023]
[1744697369955,11.83966851,131.06,130.99,30.2023]
[1744697370156,7.6326,131.04,130.99,37.8377]
[1744697370764,0.05199049,131.03,131.0,0.04818358]
[1744697371064,7.68519049,131.03,131.0,0.04818358]
[1744697371264,0.05199049,131.03,131.0,0.04818358]
[1744697371666,7.68529049,131.03,131.0,0.04818358]
[1744697372164,0.05199049,131.03,131.0,0.04818358]
[1744697372365,7.68539049,131.03,131.0,0.04818358]
[1744697372561,0.05199049,131.03,131.0,0.04818358]
[1744697373366,2.11789049,131.03,130.96,28.18]
[1744697373566,7.6362,130.98,130.96,28.18]
[1744697373866,28.18,131.01,130.93,32.3555]
[1744697374066,7.6365,130.98,130.93,32.3555]
[1744697374468,0.05725004,130.97,130.94,0.05449774]
[1744697374970,7.69395004,130.97,130.94,0.05449774]
[1744697376277,0.05725004,130.97,130.94,0.05449774]
[1744697377369,7.69425004,130.97,130.94,0.05449774]
[1744697377668,0.05725004,130.97,130.94,0.05449774]
[1744697378874,0.05725004,130.97,130.94,7.69289774]
[1744697379171,0.05725004,130.97,130.94,0.05449774]
[1744697379763,7.42747543,130.96,130.85,1.32890365]
[1744697379969,7.42747543,130.93,130.84,11.71987543]
[1744697380165,7.6406,130.91,130.87,7.6424]
[1744697380665,7.6414,130.89,130.85,7.6432]
[1744697380869,0.04993441,130.88,130.86,0.04976641]
[1744697381173,0.04993441,130.88,130.87,7.6422]
[1744697381366,0.04993441,130.88,130.86,0.04976641]
[1744697382273,0.04993441,130.88,130.86,7.69276641]
[1744697383178,0.04993441,130.88,130.86,0.04976641]
[1744697385684,7.6425,130.87,130.86,0.04976641]
[1744697385984,0.04993441,130.88,130.86,0.04976641]
[1744697387485,7.6425,130.87,130.86,0.04976641]
[1744697388085,11.89873522,130.87,130.81,2.1704]
[1744697388292,11.89873522,130.87,130.8,2.1594]
[1744697388481,11.89873522,130.87,130.77,32.3448]
[1744697388682,7.6454,130.83,130.77,32.3448]
[1744697389090,7.6454,130.83,130.79,7.6468]
[1744697389289,0.05838489,130.81,130.79,7.70310741]
[1744697389492,0.05838489,130.81,130.8,28.18]
[1744697392297,0.05838489,130.81,130.79,0.05630741]
[1744697392690,0.05838489,130.81,130.79,7.70340741]
[1744697392891,0.05838489,130.81,130.79,0.05630741]
[1744697393295,0.05838489,130.81,130.8,7.6466]
[1744697394295,0.05838489,130.81,130.79,0.05630741]
[1744697394896,7.6438,130.85,130.79,0.05630741]
[1744697395097,11.89873522,130.86,130.79,0.05630741]
[1744697395996,0.05134049,130.84,130.79,0.05630741]
[1744697396493,7.6464,130.81,130.79,0.05630741]
[1744697396894,7.69766814,130.81,130.79,0.05630741]
[1744697397099,7.6466,130.8,130.79,0.05630741]
[1744697397595,7.69746814,130.81,130.79,0.05630741]
[1744697397898,0.05126814,130.81,130.79,0.05630741]
[1744697398092,0.05126814,130.81,130.8,7.6466]
[1744697398294,0.05126814,130.81,130.79,0.05630741]
[1744697399100,0.05126814,130.81,130.79,7.70330741]
[1744697400396,0.05126814,130.81,130.8,7.6466]
[1744697402300,0.05126814,130.81,130.79,0.05630741]
[1744697403195,0.05126814,130.81,130.8,28.2]
[1744697403401,11.89873522,130.88,130.8,28.2]
[1744697403601,13.91303522,130.89,130.81,4.2297]
[1744697404003,7.6427,130.87,130.81,4.2297]
[1744697404504,0.05550396,130.85,130.83,0.05439834]
[1744697404703,0.05550396,130.85,130.84,28.2]
[1744697405099,0.05550396,130.85,130.84,35.8439]
[1744697408310,0.05550396,130.85,130.84,28.2]
[1744697408809,7.49503384,130.85,130.83,0.05439834]
[1744697409708,7.49503384,130.85,130.78,28.24]
[1744697409908,7.43952988,130.82,130.78,28.24]
[1744697410205,7.43952988,130.84,130.78,28.24]
[1744697410811,0.05043664,130.82,130.8,0.05109979]
[1744697411309,7.69623664,130.82,130.8,0.05109979]
[1744697411513,0.05043664,130.82,130.8,0.05109979]
[1744697411810,7.48996652,130.82,130.8,0.05109979]
[1744697412110,7.646,130.81,130.8,0.05109979]
[1744697412308,7.48996652,130.82,130.8,0.05109979]
[1744697412808,7.646,130.81,130.8,0.05109979]
[1744697413506,7.48996652,130.82,130.8,0.05109979]
[1744697413706,15.13566652,130.82,130.8,0.05109979]
[1744697413909,2.0839,130.9,130.8,7.49062967]
[1744697414107,1.9926,130.92,130.85,7.6435]
[1744697414309,7.43952988,130.9,130.85,7.6435]
[1744697414710,7.6418,130.89,130.85,7.6435]
[1744697414909,7.43952988,130.9,130.85,7.6435]
[1744697415110,7.6425,130.87,130.86,0.05622455]
[1744697415815,0.04865015,130.88,130.86,0.05622455]
[1744697416214,7.69065015,130.88,130.86,0.05622455]
[1744697417015,7.43952988,130.87,130.81,2.0066]
[1744697417209,7.43952988,130.89,130.81,2.0066]
[1744697417416,7.43952988,130.89,130.83,7.6445]
[1744697417613,7.6429,130.87,130.83,7.6445]
[1744697417916,7.43952988,130.87,130.81,2.0066]
[1744697418118,7.43952988,130.87,130.82,7.645]
[1744697418318,0.05374923,130.85,130.83,0.05373701]
[1744697418818,0.05374923,130.85,130.83,7.69823701]
[1744697419118,7.49327911,130.85,130.83,0.05373701]
[1744697419316,76.99568296,130.84,130.71,7.6514]
[1744697419519,11.91114148,130.76,130.69,35.70594393]
[1744697419922,11.91114148,130.74,130.69,35.70594393]
[1744697420423,0.05135009,130.73,130.7,0.05363099]
[1744697423423,0.05135009,130.73,130.71,28.24]
[1744697423822,7.6489,130.77,130.71,28.24]
[1744697424125,40.15114148,130.8,130.71,30.2177]
[1744697424319,7.6494,130.76,130.71,30.2177]
[1744697424621,7.6494,130.76,130.72,7.6509]
[1744697424814,7.6485,130.77,130.71,30.2177]
[1744697425012,0.05022711,130.75,130.73,0.049795]
[1744697425213,0.05022711,130.75,130.74,28.26]
[1744697425423,7.69972711,130.75,130.74,28.26]
[1744697425723,0.05022711,130.75,130.74,28.26]
[1744697425926,7.69972711,130.75,130.74,28.26]
[1744697426424,0.05022711,130.75,130.73,0.049795]
[1744697426624,0.05022711,130.75,130.68,28.26]
[1744697426827,11.91114148,130.74,130.68,28.26]
[1744697427225,7.653,130.7,130.68,28.26]
[1744697427425,40.17114148,130.74,130.68,28.26]
[1744697427927,7.6519,130.71,130.7,0.05024966]
[1744697428227,7.6546,130.67,130.65,28.26]
[1744697428727,28.26,130.71,130.65,28.26]
[1744697429026,40.17114148,130.74,130.66,7.6544]
[1744697429222,40.17114148,130.74,130.65,28.26]
[1744697429424,7.6524,130.7,130.69,0.04981373]
[1744697430423,7.6543,130.67,130.65,28.26]
[1744697430728,11.91114148,130.72,130.65,28.26]
[1744697430928,7.6537,130.68,130.65,28.26]
[1744697431322,11.91114148,130.72,130.65,35.9153]
[1744697431527,7.6534,130.69,130.67,0.05694648]
[1744697431730,0.05165484,130.7,130.67,0.05694648]
[1744697432129,7.653,130.69,130.67,0.05694648]
[1744697432428,0.05165484,130.7,130.67,0.05694648]
[1744697432730,7.653,130.69,130.67,0.05694648]
[1744697433932,0.05165484,130.7,130.67,0.05694648]
[1744697434928,7.653,130.69,130.67,0.05694648]
[1744697435729,0.05165484,130.7,130.67,0.05694648]
[1744697435931,0.05165484,130.7,130.68,28.26]
[1744697436130,0.05165484,130.7,130.69,7.653]
[1744697436429,0.05165484,130.7,130.68,28.26]
[1744697436829,30.6594,130.79,130.68,40.17114148]
[1744697437429,44.77484148,130.82,130.7,11.91114148]
[1744697437626,46.77424148,130.82,130.71,32.6489]
[1744697437928,0.05769932,130.78,130.75,0.04976843]
[1744697438128,0.05769932,130.78,130.76,28.66]
[1744697438430,28.66,130.85,130.76,28.66]
[1744697438632,40.57114148,130.86,130.76,28.66]
[1744697438830,7.6469,130.8,130.77,7.6481]
[1744697439031,40.57114148,130.86,130.77,7.6481]
[1744697439830,0.04933881,130.83,130.8,0.0524461]
[1744697440730,7.646,130.81,130.8,0.0524461]
[1744697441830,0.04933881,130.83,130.8,0.0524461]
[1744697442528,7.646,130.81,130.8,0.0524461]
[1744697445338,0.04933881,130.83,130.8,0.0524461]
[1744697445837,7.69463881,130.83,130.8,0.0524461]
[1744697446537,0.04933881,130.83,130.8,0.0524461]
[1744697447636,7.69453881,130.83,130.8,0.0524461]
[1744697448538,7.69453881,130.83,130.8,7.6990461]
[1744697448839,0.04933881,130.83,130.8,0.0524461]
[1744697450035,0.04933881,130.83,130.81,7.6456]
[1744697450240,0.04933881,130.83,130.8,0.0524461]
[1744697450442,1.9994,130.89,130.81,28.64]
[1744697450740,7.6428,130.87,130.83,7.6445]
[1744697450939,1.9994,130.89,130.83,7.6445]
[1744697451242,1.9994,130.89,130.84,7.6437]